[Event "*** Titled Tuesday Blitz"]
[Site "Chess.com"]
[Date "2021.03.09"]
[Round "4"]
[White "Fandorine"]
[Black "deribas12345"]
[Result "1-0"]
[WhiteElo "2888"]
[BlackElo "2542"]
[TimeControl "180+1"]
[EndTime "10:41:45 PST"]
[Termination "Fandorine won by resignation"]

1. Nf3 {[%clk 0:03:00.9]} 1... c5 {[%clk 0:02:59.4]} 2. c4 {[%clk 0:02:58.6]}
2... Nf6 {[%clk 0:02:58.4]} 3. b3 {[%clk 0:02:58.6]} 3... g6 {[%clk 0:02:57.1]}
4. Bb2 {[%clk 0:02:58.8]} 4... Bg7 {[%clk 0:02:57.5]} 5. g3 {[%clk 0:02:57.8]}
5... O-O {[%clk 0:02:56.9]} 6. Bg2 {[%clk 0:02:58.1]} 6... d6 {[%clk 0:02:57.2]}
7. d4 {[%clk 0:02:55.3]} 7... cxd4 {[%clk 0:02:48.9]} 8. Nxd4 {[%clk 0:02:54.9]}
8... Nbd7 {[%clk 0:02:39]} 9. O-O {[%clk 0:02:54.4]} 9... Nc5 {[%clk 0:02:39.3]}
10. Nc3 {[%clk 0:02:53.5]} 10... a6 {[%clk 0:02:32.1]} 11. e4 {[%clk 0:02:49.1]}
11... Bg4 {[%clk 0:02:25.9]} 12. Qd2 {[%clk 0:02:34.5]} 12... Qd7 {[%clk
0:02:15.5]} 13. Rfe1 {[%clk 0:02:32.7]} 13... Bh3 {[%clk 0:02:14.9]} 14. f3
{[%clk 0:02:22.1]} 14... Rad8 {[%clk 0:02:08.9]} 15. Rad1 {[%clk 0:02:17]} 15...
Bxg2 {[%clk 0:02:05.6]} 16. Kxg2 {[%clk 0:02:17]} 16... Ne6 {[%clk 0:02:05.9]}
17. a4 {[%clk 0:02:07.6]} 17... Nc5 {[%clk 0:02:01]} 18. Qc2 {[%clk 0:02:06.2]}
18... Rc8 {[%clk 0:01:54.5]} 19. Nd5 {[%clk 0:01:49.7]} 19... Nxd5 {[%clk
0:01:51.9]} 20. exd5 {[%clk 0:01:50.6]} 20... Bf6 {[%clk 0:01:28.9]} 21. Re3
{[%clk 0:01:46.6]} 21... Qc7 {[%clk 0:01:18.1]} 22. Bc3 {[%clk 0:01:36.4]} 22...
Rfe8 {[%clk 0:01:10.5]} 23. Rde1 {[%clk 0:01:35.2]} 23... Qb6 {[%clk 0:01:05]}
24. a5 {[%clk 0:01:23.3]} 24... Qc7 {[%clk 0:01:05.1]} 25. Nf5 {[%clk
0:01:06.2]} 25... Bg5 {[%clk 0:00:42.5]} 26. f4 {[%clk 0:01:00.3]} 26... gxf5
{[%clk 0:00:42.6]} 27. fxg5 {[%clk 0:00:38.1]} 27... Ne4 {[%clk 0:00:41.9]} 28.
Rxe4 {[%clk 0:00:30.7]} 28... fxe4 {[%clk 0:00:40.9]} 29. Rxe4 {[%clk
0:00:29.8]} 29... e5 {[%clk 0:00:35.3]} 30. Rh4 {[%clk 0:00:29.7]} 30... f5
{[%clk 0:00:34]} 31. gxf6 {[%clk 0:00:28.7]} 31... Qf7 {[%clk 0:00:31.6]} 32.
Qf5 {[%clk 0:00:22.4]} 32... Kh8 {[%clk 0:00:23]} 33. Rg4 {[%clk 0:00:17.6]}
33... Rg8 {[%clk 0:00:20]} 34. Rg7 {[%clk 0:00:17.8]} 34... Rxg7 {[%clk
0:00:12.1]} 35. fxg7+ {[%clk 0:00:17.8]} 35... Kxg7 {[%clk 0:00:11.4]} 36. Qxc8
{[%clk 0:00:18.4]} 36... Qg6 {[%clk 0:00:09]} 37. Qd7+ {[%clk 0:00:14.5]} 37...
Kg8 {[%clk 0:00:09.2]} 38. Qe6+ {[%clk 0:00:13.7]} 1-0

[Event "*** Titled Tuesday Blitz"]
[Site "Chess.com"]
[Date "2021.03.09"]
[Round "4"]
[White "pavelalexandru07"]
[Black "dodorox"]
[Result "1-0"]
[WhiteElo "2311"]
[BlackElo "2121"]
[TimeControl "180+1"]
[EndTime "10:41:45 PST"]
[Termination "pavelalexandru07 won on time"]

1. e4 {[%clk 0:03:00.9]} 1... e6 {[%clk 0:02:58.6]} 2. d4 {[%clk 0:03:00.3]}
2... d5 {[%clk 0:02:59.2]} 3. Nc3 {[%clk 0:02:59.7]} 3... Nf6 {[%clk 0:02:57.6]}
4. Bg5 {[%clk 0:02:57.5]} 4... dxe4 {[%clk 0:02:57.5]} 5. Nxe4 {[%clk
0:02:56.7]} 5... Be7 {[%clk 0:02:57.5]} 6. Bxf6 {[%clk 0:02:56.2]} 6... gxf6
{[%clk 0:02:58.2]} 7. Nf3 {[%clk 0:02:52.5]} 7... f5 {[%clk 0:02:58.7]} 8. Nc3
{[%clk 0:02:52]} 8... a6 {[%clk 0:02:58.8]} 9. g3 {[%clk 0:02:51.7]} 9... b5
{[%clk 0:02:58.8]} 10. Bg2 {[%clk 0:02:52.1]} 10... Bb7 {[%clk 0:02:59.6]} 11.
O-O {[%clk 0:02:50.8]} 11... Qd6 {[%clk 0:02:59.9]} 12. Re1 {[%clk 0:02:45.7]}
12... Nd7 {[%clk 0:02:59.9]} 13. d5 {[%clk 0:02:38]} 13... e5 {[%clk 0:02:47.9]}
14. a3 {[%clk 0:02:29.5]} 14... O-O-O {[%clk 0:02:34.6]} 15. Bh3 {[%clk
0:01:36.8]} 15... Kb8 {[%clk 0:02:00.7]} 16. Bxf5 {[%clk 0:01:36.2]} 16... Nb6
{[%clk 0:01:54.4]} 17. Nxe5 {[%clk 0:01:27.9]} 17... Rhf8 {[%clk 0:01:30]} 18.
Nc6+ {[%clk 0:01:21.8]} 18... Bxc6 {[%clk 0:01:27.1]} 19. dxc6 {[%clk
0:01:21.7]} 19... Qh6 {[%clk 0:00:50.2]} 20. Qf3 {[%clk 0:01:18.8]} 20... Bd6
{[%clk 0:00:36.8]} 21. Ne4 {[%clk 0:01:00.7]} 21... Nc4 {[%clk 0:00:29.6]} 22.
b3 {[%clk 0:00:55.7]} 22... Ne5 {[%clk 0:00:23.7]} 23. Qg2 {[%clk 0:00:31.3]}
23... Qh5 {[%clk 0:00:18.6]} 24. Nxd6 {[%clk 0:00:26.7]} 24... Nf3+ {[%clk
0:00:14.5]} 25. Kh1 {[%clk 0:00:23.6]} 25... Nxe1 {[%clk 0:00:13.6]} 26. Rxe1
{[%clk 0:00:18]} 26... Rxd6 {[%clk 0:00:14.1]} 27. Bd7 {[%clk 0:00:16.6]} 27...
Qd5 {[%clk 0:00:10.1]} 28. f3 {[%clk 0:00:15.6]} 28... Qd2 {[%clk 0:00:09.4]}
29. Qf1 {[%clk 0:00:07.6]} 29... Qxc2 {[%clk 0:00:05]} 30. a4 {[%clk 0:00:07.6]}
30... Rd2 {[%clk 0:00:04.8]} 31. axb5 {[%clk 0:00:07.6]} 31... Rxh2+ {[%clk
0:00:03.5]} 32. Kg1 {[%clk 0:00:07.9]} 32... Rg8 {[%clk 0:00:03.4]} 33. g4
{[%clk 0:00:08.2]} 1-0

[Event "*** Titled Tuesday Blitz"]
[Site "Chess.com"]
[Date "2021.03.09"]
[Round "4"]
[White "MrrRefrao"]
[Black "ChessWarrior3"]
[Result "1-0"]
[WhiteElo "2402"]
[BlackElo "2103"]
[TimeControl "180+1"]
[EndTime "10:41:46 PST"]
[Termination "MrrRefrao won on time"]

1. e4 {[%clk 0:02:05.5]} 1... c5 {[%clk 0:02:40.2]} 2. Nf3 {[%clk 0:02:02.6]}
2... d6 {[%clk 0:02:40.1]} 3. Nc3 {[%clk 0:02:02.7]} 3... Nf6 {[%clk 0:02:37.3]}
4. d4 {[%clk 0:02:02.3]} 4... cxd4 {[%clk 0:02:38.2]} 5. Nxd4 {[%clk 0:02:02.3]}
5... a6 {[%clk 0:02:38.7]} 6. Bg5 {[%clk 0:02:02]} 6... e6 {[%clk 0:02:38.2]} 7.
f4 {[%clk 0:02:01.7]} 7... h6 {[%clk 0:02:37.2]} 8. Bxf6 {[%clk 0:01:53.9]} 8...
Qxf6 {[%clk 0:02:36.1]} 9. Qd2 {[%clk 0:01:52.8]} 9... Be7 {[%clk 0:02:09]} 10.
O-O-O {[%clk 0:01:49.7]} 10... b5 {[%clk 0:01:50.4]} 11. Nf3 {[%clk 0:01:03.9]}
11... Bb7 {[%clk 0:01:31.2]} 12. Kb1 {[%clk 0:00:51.4]} 12... O-O {[%clk
0:01:29]} 13. e5 {[%clk 0:00:50.8]} 13... dxe5 {[%clk 0:01:25.1]} 14. fxe5
{[%clk 0:00:51.7]} 14... Qg6 {[%clk 0:01:24.7]} 15. Bd3 {[%clk 0:00:50.3]} 15...
Qh5 {[%clk 0:01:18]} 16. Ne4 {[%clk 0:00:48.1]} 16... Nc6 {[%clk 0:00:58.9]} 17.
Ng3 {[%clk 0:00:43.3]} 17... Qg4 {[%clk 0:00:53]} 18. Qe2 {[%clk 0:00:38.8]}
18... Rad8 {[%clk 0:00:34.1]} 19. Be4 {[%clk 0:00:36.6]} 19... Rxd1+ {[%clk
0:00:25.7]} 20. Rxd1 {[%clk 0:00:35.9]} 20... Rc8 {[%clk 0:00:19.6]} 21. Rd7
{[%clk 0:00:28.4]} 21... Ba8 {[%clk 0:00:04.2]} 22. Bxc6 {[%clk 0:00:25.7]}
22... Bxc6 {[%clk 0:00:04.1]} 23. Rxe7 {[%clk 0:00:25.4]} 23... Rd8 {[%clk
0:00:04]} 24. Rc7 {[%clk 0:00:20.3]} 24... Bxf3 {[%clk 0:00:03.6]} 25. gxf3
{[%clk 0:00:20.1]} 25... Qf4 {[%clk 0:00:03.5]} 26. a3 {[%clk 0:00:14.5]} 26...
Rd2 {[%clk 0:00:03]} 27. Qe4 {[%clk 0:00:14.1]} 27... Rd1+ {[%clk 0:00:02.9]}
28. Ka2 {[%clk 0:00:13.7]} 28... Qxe4 {[%clk 0:00:02.5]} 29. Nxe4 {[%clk
0:00:12.4]} 29... Rh1 {[%clk 0:00:02.3]} 30. Rc8+ {[%clk 0:00:05.1]} 30... Kh7
{[%clk 0:00:01.9]} 31. Nc5 {[%clk 0:00:04.6]} 31... Rxh2 {[%clk 0:00:01.8]} 32.
Nd7 {[%clk 0:00:04.7]} 1-0

[Event "*** Titled Tuesday Blitz"]
[Site "Chess.com"]
[Date "2021.03.09"]
[Round "4"]
[White "Michaelson_11"]
[Black "WilliamSchill"]
[Result "0-1"]
[WhiteElo "2269"]
[BlackElo "2035"]
[TimeControl "180+1"]
[EndTime "10:41:46 PST"]
[Termination "WilliamSchill won by resignation"]

1. e4 {[%clk 0:03:00.9]} 1... c5 {[%clk 0:02:59.5]} 2. Nc3 {[%clk 0:02:58.6]}
2... Nc6 {[%clk 0:02:58.2]} 3. Bb5 {[%clk 0:02:58.9]} 3... g6 {[%clk 0:02:55.5]}
4. Bxc6 {[%clk 0:02:58.4]} 4... dxc6 {[%clk 0:02:54.3]} 5. f4 {[%clk 0:02:58.4]}
5... Nf6 {[%clk 0:02:50.9]} 6. Nf3 {[%clk 0:02:54]} 6... Bg7 {[%clk 0:02:50.8]}
7. d3 {[%clk 0:02:48.7]} 7... O-O {[%clk 0:02:49.3]} 8. Be3 {[%clk 0:02:48.2]}
8... b6 {[%clk 0:02:47.3]} 9. O-O {[%clk 0:02:46.6]} 9... Ng4 {[%clk 0:02:41.1]}
10. Bd2 {[%clk 0:02:43.9]} 10... Bd4+ {[%clk 0:02:36]} 11. Kh1 {[%clk
0:02:44.1]} 11... Nf2+ {[%clk 0:02:34.4]} 12. Rxf2 {[%clk 0:02:44.7]} 12... Bxf2
{[%clk 0:02:34.4]} 13. Qe2 {[%clk 0:02:43.6]} 13... Bd4 {[%clk 0:02:33.7]} 14.
e5 {[%clk 0:02:35.1]} 14... Bg4 {[%clk 0:02:27.6]} 15. Rf1 {[%clk 0:02:31.6]}
15... Qd7 {[%clk 0:02:13.8]} 16. Ne4 {[%clk 0:02:27.1]} 16... Bxb2 {[%clk
0:02:05.5]} 17. h3 {[%clk 0:01:55.5]} 17... Bxf3 {[%clk 0:02:02.6]} 18. Qxf3
{[%clk 0:01:52.2]} 18... f5 {[%clk 0:01:55.1]} 19. exf6 {[%clk 0:01:37]} 19...
exf6 {[%clk 0:01:48.6]} 20. Rb1 {[%clk 0:01:34.4]} 20... Bd4 {[%clk 0:01:28.6]}
21. g4 {[%clk 0:01:18.4]} 21... f5 {[%clk 0:01:28]} 22. Ng3 {[%clk 0:01:06.4]}
22... fxg4 {[%clk 0:01:18.1]} 23. hxg4 {[%clk 0:01:07.3]} 23... Rae8 {[%clk
0:01:07.1]} 24. f5 {[%clk 0:01:03]} 24... Qd5 {[%clk 0:01:02.5]} 25. Ne4 {[%clk
0:00:50.1]} 25... gxf5 {[%clk 0:00:56.3]} 26. gxf5 {[%clk 0:00:50.3]} 26... Rxf5
{[%clk 0:00:51.6]} 27. Rg1+ {[%clk 0:00:43.8]} 27... Kh8 {[%clk 0:00:50]} 28.
Qg4 {[%clk 0:00:43.2]} 28... Rg8 {[%clk 0:00:44.2]} 29. Qxg8+ {[%clk 0:00:14]}
29... Qxg8 {[%clk 0:00:44.1]} 30. Rxg8+ {[%clk 0:00:14.9]} 30... Kxg8 {[%clk
0:00:44.3]} 31. Kg2 {[%clk 0:00:15]} 31... h5 {[%clk 0:00:41]} 32. Be1 {[%clk
0:00:09.9]} 32... a5 {[%clk 0:00:35.7]} 33. Kh3 {[%clk 0:00:08.8]} 33... Rf1
{[%clk 0:00:33.4]} 34. Bd2 {[%clk 0:00:07.5]} 34... Ra1 {[%clk 0:00:32.3]} 35.
Kh4 {[%clk 0:00:06.7]} 35... Rxa2 {[%clk 0:00:31.3]} 36. c3 {[%clk 0:00:06.4]}
36... Rxd2 {[%clk 0:00:29]} 37. Nxd2 {[%clk 0:00:05.3]} 37... Bxc3 {[%clk
0:00:29.1]} 38. Nc4 {[%clk 0:00:05.8]} 38... b5 {[%clk 0:00:25.7]} 39. Nd6
{[%clk 0:00:03.5]} 39... a4 {[%clk 0:00:24.4]} 40. Ne4 {[%clk 0:00:03.1]} 40...
Bb4 {[%clk 0:00:23.1]} 41. Kg5 {[%clk 0:00:02.7]} 41... a3 {[%clk 0:00:23.3]}
0-1

[Event "*** Titled Tuesday Blitz"]
[Site "Chess.com"]
[Date "2021.03.09"]
[Round "4"]
[White "Dyadya81"]
[Black "bsnsun"]
[Result "1-0"]
[WhiteElo "2723"]
[BlackElo "2453"]
[TimeControl "180+1"]
[EndTime "10:41:50 PST"]
[Termination "Dyadya81 won on time"]

1. e4 {[%clk 0:03:00.9]} 1... c5 {[%clk 0:02:58.4]} 2. Nc3 {[%clk 0:03:00.3]}
2... Nc6 {[%clk 0:02:57.1]} 3. Bb5 {[%clk 0:02:59.9]} 3... Nd4 {[%clk
0:02:56.1]} 4. Bc4 {[%clk 0:02:59.8]} 4... g6 {[%clk 0:02:53.9]} 5. Nf3 {[%clk
0:02:59.5]} 5... Bg7 {[%clk 0:02:54.1]} 6. Nxd4 {[%clk 0:02:59.4]} 6... cxd4
{[%clk 0:02:54.4]} 7. Qf3 {[%clk 0:02:59.4]} 7... f5 {[%clk 0:02:54.9]} 8. Ne2
{[%clk 0:02:56.9]} 8... Qa5 {[%clk 0:02:54.7]} 9. O-O {[%clk 0:02:52]} 9... e6
{[%clk 0:02:54.6]} 10. d3 {[%clk 0:02:44.9]} 10... Ne7 {[%clk 0:02:54.3]} 11.
Bf4 {[%clk 0:02:34.4]} 11... O-O {[%clk 0:02:49.5]} 12. Bd6 {[%clk 0:02:29.9]}
12... Re8 {[%clk 0:02:39.9]} 13. b4 {[%clk 0:02:29.8]} 13... Qd8 {[%clk
0:02:34.4]} 14. e5 {[%clk 0:02:20.3]} 14... Nc6 {[%clk 0:02:30.6]} 15. Qg3
{[%clk 0:02:20]} 15... a6 {[%clk 0:02:20.3]} 16. a4 {[%clk 0:02:17.5]} 16... Bf8
{[%clk 0:02:04.2]} 17. b5 {[%clk 0:02:11.6]} 17... Bxd6 {[%clk 0:01:55.1]} 18.
exd6 {[%clk 0:02:09]} 18... Na5 {[%clk 0:01:51.5]} 19. Nxd4 {[%clk 0:02:06.7]}
19... Nxc4 {[%clk 0:01:51.2]} 20. dxc4 {[%clk 0:02:07]} 20... Qf6 {[%clk
0:01:50.6]} 21. Nb3 {[%clk 0:01:54.9]} 21... b6 {[%clk 0:01:44.7]} 22. Qe3
{[%clk 0:01:48.8]} 22... Rb8 {[%clk 0:01:37.9]} 23. f4 {[%clk 0:01:30.1]} 23...
Bb7 {[%clk 0:01:36.5]} 24. Qe5 {[%clk 0:01:28.1]} 24... Qh4 {[%clk 0:01:33.4]}
25. Rf2 {[%clk 0:01:22.9]} 25... Rec8 {[%clk 0:01:30.1]} 26. c5 {[%clk
0:01:14.7]} 26... axb5 {[%clk 0:01:16]} 27. axb5 {[%clk 0:01:13.5]} 27... Bd5
{[%clk 0:01:07.7]} 28. Ra7 {[%clk 0:01:06.9]} 28... Rb7 {[%clk 0:00:41.2]} 29.
Rxb7 {[%clk 0:01:03.3]} 29... Bxb7 {[%clk 0:00:40.9]} 30. c6 {[%clk 0:01:03]}
30... dxc6 {[%clk 0:00:26.8]} 31. Qxe6+ {[%clk 0:00:59.2]} 31... Kg7 {[%clk
0:00:25]} 32. d7 {[%clk 0:00:57.5]} 32... Rd8 {[%clk 0:00:16.3]} 33. bxc6 {[%clk
0:00:57.5]} 33... Bxc6 {[%clk 0:00:16.4]} 34. Qxc6 {[%clk 0:00:56.5]} 34... Qe7
{[%clk 0:00:17]} 35. Qc3+ {[%clk 0:00:42.1]} 35... Kh6 {[%clk 0:00:15.9]} 36.
Rf3 {[%clk 0:00:42.5]} 36... g5 {[%clk 0:00:14.2]} 37. Nd4 {[%clk 0:00:31.1]}
37... Kg6 {[%clk 0:00:13.4]} 38. Nc6 {[%clk 0:00:26.8]} 38... Qe2 {[%clk
0:00:12.9]} 39. Nxd8 {[%clk 0:00:23.6]} 39... Qd1+ {[%clk 0:00:12.9]} 40. Rf1
{[%clk 0:00:23.9]} 1-0

[Event "*** Titled Tuesday Blitz"]
[Site "Chess.com"]
[Date "2021.03.09"]
[Round "4"]
[White "Barbix1"]
[Black "Fiona"]
[Result "1-0"]
[WhiteElo "2433"]
[BlackElo "2206"]
[TimeControl "180+1"]
[EndTime "10:41:50 PST"]
[Termination "Barbix1 won by resignation"]

1. d4 {[%clk 0:02:50.2]} 1... d6 {[%clk 0:03:00.2]} 2. Nf3 {[%clk 0:02:49.6]}
2... Bg4 {[%clk 0:02:59.4]} 3. c4 {[%clk 0:02:45.9]} 3... Nd7 {[%clk 0:02:58.4]}
4. Qb3 {[%clk 0:02:45.2]} 4... Rb8 {[%clk 0:02:55.5]} 5. h3 {[%clk 0:02:38.9]}
5... Bxf3 {[%clk 0:02:54.4]} 6. Qxf3 {[%clk 0:02:38]} 6... Ngf6 {[%clk
0:02:54.6]} 7. Nc3 {[%clk 0:02:34.1]} 7... c6 {[%clk 0:02:53.6]} 8. e3 {[%clk
0:02:19.7]} 8... g6 {[%clk 0:02:53.3]} 9. Bd3 {[%clk 0:02:17.8]} 9... Bg7 {[%clk
0:02:53.3]} 10. O-O {[%clk 0:02:18]} 10... O-O {[%clk 0:02:52.2]} 11. Bd2 {[%clk
0:01:59.5]} 11... e5 {[%clk 0:02:50.4]} 12. Rad1 {[%clk 0:01:49.5]} 12... Qe7
{[%clk 0:02:47.6]} 13. Bc1 {[%clk 0:01:47.9]} 13... Rbe8 {[%clk 0:02:43.4]} 14.
Bc2 {[%clk 0:01:46.6]} 14... e4 {[%clk 0:02:39.2]} 15. Qe2 {[%clk 0:01:45.6]}
15... d5 {[%clk 0:02:33.8]} 16. cxd5 {[%clk 0:01:45.2]} 16... cxd5 {[%clk
0:02:34.4]} 17. Bb3 {[%clk 0:01:44.3]} 17... Nb6 {[%clk 0:02:31.9]} 18. Qb5
{[%clk 0:01:43.2]} 18... Qd6 {[%clk 0:02:23]} 19. Bd2 {[%clk 0:01:33.3]} 19...
Rd8 {[%clk 0:02:18.9]} 20. Rc1 {[%clk 0:01:31]} 20... Rfe8 {[%clk 0:02:03.3]}
21. Na4 {[%clk 0:01:02.2]} 21... Rc8 {[%clk 0:01:56.8]} 22. Bb4 {[%clk
0:00:54.7]} 22... Qd7 {[%clk 0:01:56.8]} 23. Qxd7 {[%clk 0:00:48.8]} 23... Nfxd7
{[%clk 0:01:57.7]} 24. Nc5 {[%clk 0:00:46.2]} 24... Rc7 {[%clk 0:01:42.4]} 25.
Nxd7 {[%clk 0:00:44.1]} 25... Rxd7 {[%clk 0:01:40]} 26. Bc5 {[%clk 0:00:44.2]}
26... Red8 {[%clk 0:01:32.4]} 27. a4 {[%clk 0:00:41.7]} 27... Bf8 {[%clk
0:01:30.4]} 28. a5 {[%clk 0:00:33.7]} 28... Nc8 {[%clk 0:01:30]} 29. Ba4 {[%clk
0:00:26.9]} 29... Rc7 {[%clk 0:01:21.9]} 30. Bxf8 {[%clk 0:00:20.9]} 30... Rxc1
{[%clk 0:01:22.8]} 31. Rxc1 {[%clk 0:00:21.3]} 31... Kxf8 {[%clk 0:01:20.4]} 32.
Rc7 {[%clk 0:00:21.6]} 32... Nd6 {[%clk 0:01:18.6]} 33. Bb3 {[%clk 0:00:21.7]}
33... Nc4 {[%clk 0:00:43.4]} 34. Bxc4 {[%clk 0:00:19.3]} 34... dxc4 {[%clk
0:00:44.3]} 35. Rxc4 {[%clk 0:00:19.9]} 35... Rd7 {[%clk 0:00:44.9]} 36. Kf1
{[%clk 0:00:19.8]} 36... Ke7 {[%clk 0:00:45.3]} 37. Ke2 {[%clk 0:00:20.2]} 37...
Kd6 {[%clk 0:00:44]} 38. Rc5 {[%clk 0:00:20.7]} 38... f6 {[%clk 0:00:43]} 39. g4
{[%clk 0:00:21]} 39... b6 {[%clk 0:00:43.1]} 40. axb6 {[%clk 0:00:20.8]} 40...
axb6 {[%clk 0:00:44]} 41. Rc3 {[%clk 0:00:20.5]} 41... Ra7 {[%clk 0:00:42.9]}
42. Ra3 {[%clk 0:00:20.7]} 42... Rc7 {[%clk 0:00:42.1]} 43. Kd2 {[%clk
0:00:20.8]} 43... h5 {[%clk 0:00:36.2]} 44. Ra6 {[%clk 0:00:18.9]} 44... Kc6
{[%clk 0:00:35.7]} 45. Ra8 {[%clk 0:00:17]} 45... hxg4 {[%clk 0:00:33.9]} 46.
hxg4 {[%clk 0:00:17.9]} 46... Rf7 {[%clk 0:00:28.3]} 47. Rg8 {[%clk 0:00:18]}
47... f5 {[%clk 0:00:27.2]} 48. Rxg6+ {[%clk 0:00:17.1]} 48... Kb5 {[%clk
0:00:26.5]} 49. Rg5 {[%clk 0:00:17.3]} 1-0

[Event "*** Titled Tuesday Blitz"]
[Site "Chess.com"]
[Date "2021.03.09"]
[Round "4"]
[White "Leo_C"]
[Black "chessprincesa1"]
[Result "1-0"]
[WhiteElo "2444"]
[BlackElo "2244"]
[TimeControl "180+1"]
[EndTime "10:41:51 PST"]
[Termination "Leo_C won on time"]

1. e4 {[%clk 0:02:53.9]} 1... e5 {[%clk 0:02:57.3]} 2. Nf3 {[%clk 0:02:52.9]}
2... Nc6 {[%clk 0:02:55.7]} 3. Bc4 {[%clk 0:02:52.4]} 3... Bc5 {[%clk
0:02:53.7]} 4. O-O {[%clk 0:02:49.9]} 4... Nf6 {[%clk 0:02:52.5]} 5. d3 {[%clk
0:02:49.7]} 5... d6 {[%clk 0:02:51.5]} 6. c3 {[%clk 0:02:47.7]} 6... a6 {[%clk
0:02:50.4]} 7. Nbd2 {[%clk 0:02:43.6]} 7... O-O {[%clk 0:02:48.2]} 8. a4 {[%clk
0:02:43.2]} 8... Rb8 {[%clk 0:02:45.6]} 9. b4 {[%clk 0:02:41.2]} 9... Ba7 {[%clk
0:02:44.4]} 10. Nb3 {[%clk 0:02:27]} 10... h6 {[%clk 0:02:36.1]} 11. b5 {[%clk
0:02:23.9]} 11... Ne7 {[%clk 0:02:33]} 12. Qe2 {[%clk 0:02:18.3]} 12... Bg4
{[%clk 0:02:29.1]} 13. h3 {[%clk 0:02:14.4]} 13... Be6 {[%clk 0:02:26.2]} 14.
Bxe6 {[%clk 0:01:54.7]} 14... fxe6 {[%clk 0:02:27.1]} 15. Be3 {[%clk 0:01:52.1]}
15... Bxe3 {[%clk 0:02:25.1]} 16. fxe3 {[%clk 0:01:50]} 16... Ng6 {[%clk
0:02:19]} 17. c4 {[%clk 0:01:44.7]} 17... axb5 {[%clk 0:02:13.3]} 18. axb5
{[%clk 0:01:43.8]} 18... Qe8 {[%clk 0:02:00.2]} 19. Ra7 {[%clk 0:01:31.8]} 19...
Nh5 {[%clk 0:01:56.6]} 20. Qe1 {[%clk 0:01:28.5]} 20... Rf7 {[%clk 0:01:49]} 21.
Na5 {[%clk 0:01:28]} 21... b6 {[%clk 0:01:38.7]} 22. Nc6 {[%clk 0:01:27.5]}
22... Ra8 {[%clk 0:01:35.6]} 23. Rxa8 {[%clk 0:01:23.4]} 23... Qxa8 {[%clk
0:01:36.5]} 24. Qa1 {[%clk 0:01:23.6]} 24... Qf8 {[%clk 0:01:32.5]} 25. Qa7
{[%clk 0:01:21.8]} 25... Ng3 {[%clk 0:01:26.9]} 26. Rf2 {[%clk 0:01:14.6]} 26...
Nh4 {[%clk 0:01:19.5]} 27. Qb8 {[%clk 0:01:04.5]} 27... Nxf3+ {[%clk 0:01:10.1]}
28. Rxf3 {[%clk 0:01:03.2]} 28... Rxf3 {[%clk 0:01:07.9]} 29. gxf3 {[%clk
0:01:03.2]} 29... Qxb8 {[%clk 0:01:07.4]} 30. Nxb8 {[%clk 0:01:02.8]} 30... Ne2+
{[%clk 0:01:06.1]} 31. Kf2 {[%clk 0:01:02.5]} 31... Nc1 {[%clk 0:01:05.8]} 32.
d4 {[%clk 0:00:57.9]} 32... exd4 {[%clk 0:00:45]} 33. exd4 {[%clk 0:00:56.3]}
33... Nb3 {[%clk 0:00:45.9]} 34. Ke3 {[%clk 0:00:56]} 34... Kf7 {[%clk
0:00:40.5]} 35. Na6 {[%clk 0:00:55.8]} 35... Na5 {[%clk 0:00:28.7]} 36. Kd3
{[%clk 0:00:51.8]} 36... e5 {[%clk 0:00:25.4]} 37. dxe5 {[%clk 0:00:44.6]} 37...
dxe5 {[%clk 0:00:22.6]} 38. Nxc7 {[%clk 0:00:44.6]} 38... Kf6 {[%clk 0:00:19.9]}
39. Nd5+ {[%clk 0:00:42.7]} 39... Kg5 {[%clk 0:00:18.6]} 40. Nxb6 {[%clk
0:00:42.2]} 40... Kf4 {[%clk 0:00:18.5]} 41. Ke2 {[%clk 0:00:42.2]} 41... Kg3
{[%clk 0:00:16.5]} 42. c5 {[%clk 0:00:40.5]} 42... Kxh3 {[%clk 0:00:13.1]} 43.
c6 {[%clk 0:00:39.6]} 43... Kg3 {[%clk 0:00:11.2]} 44. c7 {[%clk 0:00:39.7]}
44... h5 {[%clk 0:00:11.2]} 45. c8=Q {[%clk 0:00:39.2]} 45... h4 {[%clk
0:00:12.1]} 46. Qg4+ {[%clk 0:00:38.5]} 1-0

[Event "*** Titled Tuesday Blitz"]
[Site "Chess.com"]
[Date "2021.03.09"]
[Round "4"]
[White "AlexPapasimakopoulos"]
[Black "volkanyirik"]
[Result "1-0"]
[WhiteElo "2585"]
[BlackElo "2403"]
[TimeControl "180+1"]
[EndTime "10:41:52 PST"]
[Termination "AlexPapasimakopoulos won by resignation"]

1. d4 {[%clk 0:02:58.9]} 1... Nf6 {[%clk 0:02:56.5]} 2. c4 {[%clk 0:02:59.8]}
2... c5 {[%clk 0:02:56.9]} 3. d5 {[%clk 0:02:49.9]} 3... b5 {[%clk 0:02:55.5]}
4. Nf3 {[%clk 0:02:50.3]} 4... d6 {[%clk 0:02:50.2]} 5. cxb5 {[%clk 0:02:45.9]}
5... a6 {[%clk 0:02:50.4]} 6. e3 {[%clk 0:02:46.8]} 6... g6 {[%clk 0:02:48.8]}
7. Nc3 {[%clk 0:02:31.8]} 7... Bg7 {[%clk 0:02:48.1]} 8. a4 {[%clk 0:02:32.7]}
8... O-O {[%clk 0:02:47.5]} 9. Ra3 {[%clk 0:02:33.4]} 9... e6 {[%clk 0:02:47.1]}
10. dxe6 {[%clk 0:02:32.2]} 10... Bxe6 {[%clk 0:02:48]} 11. Be2 {[%clk
0:02:32.4]} 11... axb5 {[%clk 0:02:47.1]} 12. Bxb5 {[%clk 0:02:33.3]} 12... Na6
{[%clk 0:02:46.5]} 13. O-O {[%clk 0:02:18.7]} 13... Nb4 {[%clk 0:02:46.5]} 14.
Qe2 {[%clk 0:01:45.9]} 14... Qe7 {[%clk 0:02:42.2]} 15. e4 {[%clk 0:01:43.2]}
15... Rfd8 {[%clk 0:02:40.9]} 16. Rd1 {[%clk 0:01:41.4]} 16... h6 {[%clk
0:02:38.9]} 17. h3 {[%clk 0:01:40.9]} 17... Qb7 {[%clk 0:02:24.1]} 18. Bf4
{[%clk 0:01:32.8]} 18... Qb6 {[%clk 0:02:18.3]} 19. Raa1 {[%clk 0:01:30.3]}
19... Kh7 {[%clk 0:02:15.3]} 20. Bh2 {[%clk 0:01:24.3]} 20... Bb3 {[%clk
0:02:10.2]} 21. Rd2 {[%clk 0:01:21.5]} 21... Ra7 {[%clk 0:02:01.3]} 22. e5
{[%clk 0:01:20.1]} 22... Nh5 {[%clk 0:01:50.6]} 23. exd6 {[%clk 0:01:17.3]}
23... f5 {[%clk 0:01:37.7]} 24. Be5 {[%clk 0:01:14.1]} 24... Bxe5 {[%clk
0:01:29.9]} 25. Qxe5 {[%clk 0:01:13.4]} 25... Ng7 {[%clk 0:01:24.3]} 26. Re1
{[%clk 0:01:03.3]} 26... Nc2 {[%clk 0:01:13.4]} 27. Rc1 {[%clk 0:00:53.9]} 27...
Nb4 {[%clk 0:01:13.3]} 28. h4 {[%clk 0:00:50.3]} 28... Nh5 {[%clk 0:01:04.7]}
29. d7 {[%clk 0:00:46.8]} 29... Qf6 {[%clk 0:01:00.2]} 30. Ne2 {[%clk
0:00:41.1]} 30... Bxa4 {[%clk 0:00:51.8]} 31. Qxc5 {[%clk 0:00:38.1]} 31... Bxb5
{[%clk 0:00:40.3]} 32. Qxa7 {[%clk 0:00:38]} 32... Bxe2 {[%clk 0:00:40.1]} 33.
Rxe2 {[%clk 0:00:35.3]} 33... Nf4 {[%clk 0:00:40.5]} 34. Re8 {[%clk 0:00:31.3]}
34... Ne6 {[%clk 0:00:19.8]} 35. Re1 {[%clk 0:00:29.2]} 35... Nc6 {[%clk
0:00:17.3]} 36. Qb7 {[%clk 0:00:24.6]} 36... Ne7 {[%clk 0:00:11.1]} 37. Qb6
{[%clk 0:00:16.1]} 37... Rxd7 {[%clk 0:00:07.9]} 38. Qxe6 {[%clk 0:00:16]} 38...
Qxe6 {[%clk 0:00:07.2]} 39. Rxe6 {[%clk 0:00:16.9]} 39... Kg7 {[%clk 0:00:08]}
40. R6xe7+ {[%clk 0:00:17.1]} 40... Rxe7 {[%clk 0:00:07.9]} 41. Rxe7+ {[%clk
0:00:18]} 41... Kf6 {[%clk 0:00:08.8]} 42. Rb7 {[%clk 0:00:18.3]} 1-0